bitfinex/quotes_SOLUSD_20240906
["timestamp","ask_amount","ask_price","bid_price","bid_amount"]
[1725620463710,28.97855265,130.78,130.74,19.1214]
[1725620465525,28.97855265,130.78,130.74,26.7701]
[1725620466328,21.33175265,130.78,130.76,7.6472]
[1725620466629,1.33175265,130.78,130.76,7.6472]
[1725620466840,1.33175265,130.78,130.74,19.1214]
[1725620467000,1.33175265,130.78,130.74,26.7697]
[1725620467207,21.33175265,130.78,130.74,26.7697]
[1725620468134,28.97825265,130.78,130.74,26.7697]
[1725620470032,7.6477,130.76,130.71,26.7758]
[1725620470419,20.0,130.75,130.71,26.7758]
[1725620470744,27.6482,130.75,130.71,25.7758]
[1725620471310,20.0,130.75,130.71,25.7758]
[1725620472929,7.6491,130.74,130.7,7.651]
[1725620473139,7.6491,130.74,130.69,15.0414]
[1725620473634,27.6483,130.75,130.7,19.1269]
[1725620473839,27.6483,130.75,130.71,7.65]
[1725620474141,20.0,130.75,130.7,19.1269]
[1725620474343,1.33175265,130.78,130.7,26.7775]
[1725620474344,7.6487,130.74,130.7,26.7775]
[1725620475228,7.6496,130.73,130.7,19.1269]
[1725620475522,29.8793,130.77,130.7,19.1269]
[1725620475709,20.0,130.76,130.7,19.1269]
[1725620476332,1.33202387,130.75,130.7,19.1269]
[1725620477445,8.98032387,130.75,130.71,7.6504]
[1725620477742,8.98032387,130.75,130.72,7.6498]
[1725620477743,20.0,130.74,130.72,7.6498]
[1725620478125,21.33202387,130.75,130.72,7.6498]
[1725620478711,14.88625186,130.8,130.7,89.35564938]
[1725620478921,7.6444,130.82,130.77,7.6469]
[1725620479136,1.33150592,130.82,130.78,7.6462]
[1725620479342,7.6438,130.83,130.78,7.6462]
[1725620480035,4.2436,130.86,130.78,16.2898]
[1725620480218,7.6423,130.85,130.81,7.6446]
[1725620480737,7.6418,130.86,130.81,7.6446]
[1725620482262,7.6423,130.85,130.81,7.6446]
[1725620482845,20.0,130.84,130.81,7.6446]
[1725620483343,20.0,130.84,130.8,26.7574]
[1725620483549,27.6429,130.84,130.8,19.1123]
[1725620483739,27.6429,130.84,130.79,7.6457]
[1725620487720,20.0,130.84,130.8,7.6452]
[1725620488243,27.643,130.84,130.8,7.6452]
[1725620488543,27.643,130.84,130.79,26.7592]
[1725620490032,7.6435,130.83,130.79,26.7592]
[1725620490649,27.6441,130.82,130.79,19.1139]
[1725620490835,27.6441,130.82,130.78,16.2898]
[1725620493857,27.6441,130.82,130.78,23.9361]
[1725620497152,7.6447,130.81,130.77,7.6469]
[1725620498827,7.6464,130.78,130.75,15.3342]
[1725620499146,7.646,130.79,130.75,22.9823]
[1725620504949,1.33143337,130.8,130.77,7.6468]
[1725620505251,27.6452,130.8,130.76,7.647]
[1725620505962,20.0,130.8,130.77,7.6469]
[1725620506149,20.0,130.8,130.78,7.6463]
[1725620506557,20.0,130.81,130.78,7.6463]
[1725620507058,7.6434,130.84,130.8,7.645]
[1725620508355,20.0,130.83,130.8,7.645]
[1725620508549,20.0,130.84,130.81,7.6444]
[1725620509560,1.33101991,130.86,130.82,7.6439]
[1725620510764,1.33101991,130.86,130.83,7.6434]
[1725620510941,20.0,130.86,130.83,7.6434]
[1725620511549,20.0,130.86,130.81,19.1105]
[1725620511550,27.6417,130.86,130.82,7.644]
[1725620511737,20.0,130.86,130.82,7.644]
[1725620511935,20.0,130.86,130.83,7.6433]
[1725620512162,0.6369713,130.87,130.84,7.6425]
[1725620512472,0.6369713,130.87,130.86,7.6417]
[1725620517150,0.6369713,130.87,130.86,23.9507]
[1725620522959,0.6369713,130.87,130.86,73.9507]
[1725620523158,0.6369713,130.87,130.86,113.30634938]
[1725620524457,0.6369713,130.87,130.86,23.9507]
[1725620528496,0.6369713,130.87,130.86,7.6417]
[1725620529602,0.6369713,130.87,130.85,19.1052]
[1725620530977,0.6369713,130.87,130.85,26.7475]
[1725620531792,0.6369713,130.87,130.84,7.6427]
[1725620533688,0.6369713,130.87,130.84,26.7498]
[1725620534000,0.6369713,130.87,130.85,7.6423]
[1725620534683,0.6369713,130.87,130.86,7.6417]
[1725620535002,0.6369713,130.87,130.86,46.99734938]
[1725620537885,0.6369713,130.87,130.86,7.6417]
[1725620552186,0.6369713,130.87,130.86,26.746]
[1725620554193,0.6369713,130.87,130.86,42.46993422]
[1725620558822,0.6369713,130.87,130.86,120.71480623]
[1725620559401,0.6369713,130.87,130.86,121.75804033]
[1725620560022,0.6369713,130.87,130.86,115.20583422]
[1725620560223,0.6369713,130.87,130.86,120.71480337]
[1725620562427,0.6369713,130.87,130.86,120.71449451]
[1725620562607,12.02697745,130.96,130.86,120.71449451]
[1725620562608,20.0,130.95,130.92,7.6382]
[1725620562928,27.6365,130.95,130.91,26.7353]
[1725620565151,20.0,130.95,130.92,7.6381]
[1725620566033,20.0,130.95,130.91,26.7353]
[1725620566034,27.6365,130.95,130.91,26.7353]
[1725620567228,20.0,130.95,130.92,7.6378]
[1725620567409,1.32957745,130.96,130.91,26.7353]
[1725620567611,1.32957745,130.96,130.91,19.0967]
[1725620567810,8.96587745,130.96,130.92,7.638]
[1725620568208,20.0,130.95,130.92,7.638]
[1725620571028,27.6366,130.95,130.91,26.7354]
[1725620571234,20.0,130.95,130.91,19.0967]
[1725620571415,1.32957745,130.96,130.91,19.0967]
[1725620571617,7.6367,130.95,130.91,26.7355]
[1725620571835,20.0,130.94,130.91,26.7355]
[1725620572513,27.6372,130.94,130.9,7.6393]
[1725620574811,20.0,130.94,130.91,7.6388]
[1725620575040,1.32957745,130.96,130.92,19.0954]
[1725620575341,1.32957745,130.96,130.93,7.6372]
[1725620575535,21.32957745,130.96,130.93,7.6372]
[1725620577741,28.96557745,130.96,130.92,26.7334]
[1725620579144,1.32957745,130.96,130.93,7.6376]
[1725620579640,21.32957745,130.96,130.92,19.0954]
[1725620580016,7.6366,130.95,130.92,19.0954]
[1725620580717,1.32997142,130.94,130.92,19.0954]
[1725620581743,1.32997142,130.94,130.92,26.7336]
[1725620582133,1.32997142,130.94,130.93,7.6376]
[1725620582640,27.6361,130.96,130.93,7.6376]
[1725620583017,28.96596405,130.96,130.93,7.6376]
[1725620583348,21.32986405,130.96,130.93,7.6376]
[1725620587650,1.32986405,130.96,130.95,7.6365]
[1725620587849,7.6343,130.99,130.95,7.6365]
[1725620589148,20.0,130.98,130.95,7.6365]
[1725620590932,27.6348,130.98,130.94,26.7291]
[1725620591336,7.6353,130.97,130.94,26.7291]
[1725620592847,7.6361,130.96,130.92,7.6381]
[1725620593169,20.0,130.98,130.91,35.2258]
[1725620593170,7.6354,130.97,130.93,7.6375]
[1725620593747,7.6359,130.96,130.92,7.6381]
[1725620593939,23.9691,130.97,130.88,19.1002]
[1725620594145,20.0,130.96,130.88,19.1002]
[1725620594447,7.6373,130.94,130.9,7.6389]
[1725620594651,7.6367,130.95,130.91,7.6386]
[1725620594855,20.0,130.94,130.91,7.6386]
[1725620595876,27.6371,130.94,130.9,26.737]
[1725620596373,27.6371,130.94,130.87,22.6613]
[1725620596374,7.6395,130.9,130.85,7.6418]
[1725620596669,7.6389,130.91,130.86,7.6412]
[1725620599065,7.6383,130.92,130.88,7.6404]
[1725620599259,20.0,130.91,130.88,7.6404]
[1725620599477,27.6388,130.91,130.87,7.641]
[1725620599851,20.0,130.91,130.87,7.641]
[1725620600052,27.6389,130.91,130.87,7.641]
[1725620600562,27.6389,130.91,130.86,26.7453]
[1725620600944,27.6389,130.91,130.87,7.6411]
[1725620603664,27.6389,130.91,130.85,5.52364375]
[1725620603665,7.641,130.88,130.85,5.52364375]
[1725620603964,7.6401,130.89,130.84,22.8158]
[1725620604345,7.6401,130.89,130.85,7.6423]
[1725620606191,20.0,130.91,130.85,19.1052]
[1725620606192,27.6389,130.91,130.85,19.1052]
[1725620606377,7.6384,130.92,130.87,19.1025]
[1725620606559,4.8803,130.95,130.89,19.0993]
[1725620606766,7.6372,130.94,130.9,7.6389]
[1725620607066,4.8803,130.95,130.89,19.0993]
[1725620607067,7.6377,130.93,130.89,26.7391]
[1725620607264,7.6373,130.94,130.89,26.7391]
[1725620607584,7.6377,130.93,130.89,26.7391]
[1725620607788,4.8803,130.95,130.84,119.11013422]
[1725620607789,7.6384,130.92,130.86,19.1031]
[1725620607987,7.6384,130.92,130.87,7.6407]
[1725620608761,7.6389,130.91,130.87,7.6407]
[1725620611055,1.33062647,130.9,130.87,7.6407]
[1725620612583,1.33062647,130.9,130.86,19.1031]
[1725620613664,8.97022647,130.9,130.86,26.7445]
[1725620614787,8.97022647,130.9,130.87,7.6411]
[1725620614788,1.33062647,130.9,130.87,7.6411]
[1725620615100,21.33062647,130.9,130.87,7.6411]
[1725620617167,28.97002647,130.9,130.87,7.6411]
[1725620618591,21.33062647,130.9,130.87,7.6411]
[1725620623787,28.97012647,130.9,130.86,26.7446]
[1725620625902,28.97012647,130.9,130.87,7.6411]
[1725620629585,7.64,130.89,130.86,26.7446]
[1725620630104,27.6406,130.88,130.84,7.6427]
[1725620630307,7.6406,130.88,130.84,7.6427]
[1725620630482,20.0,130.87,130.85,19.1057]
[1725620631024,2.06119928,130.94,130.85,19.1057]
[1725620631025,13.966,130.96,130.89,7.64]
[1725620631227,6.3296,130.96,130.87,19.1022]
[1725620631506,6.21069064,130.95,130.87,19.1022]
[1725620631693,4.8803,130.95,130.87,19.1022]
[1725620632286,7.6387,130.92,130.87,26.7432]
[1725620632512,4.8803,130.95,130.83,6.113]
[1725620632682,20.0,130.91,130.83,25.2203]
[1725620632883,7.6394,130.9,130.85,7.6423]
[1725620633100,20.0,130.89,130.85,7.6423]
[1725620634706,27.64,130.89,130.84,7.6428]
[1725620635987,7.6411,130.88,130.83,26.7507]
[1725620636187,20.0,130.89,130.83,26.7507]
[1725620636188,27.6411,130.87,130.83,19.1073]
[1725620636382,7.6411,130.87,130.83,19.1073]
[1725620636597,20.0,130.86,130.83,19.1073]
[1725620640493,20.0,130.86,130.83,26.7507]
[1725620642393,20.0,130.86,130.83,19.1073]
[1725620644587,20.0,130.86,130.83,26.7507]
[1725620647914,20.0,130.86,130.83,19.1073]
[1725620648108,20.0,130.89,130.83,19.1073]
[1725620648315,24.8803,130.9,130.83,19.1073]
[1725620649420,7.6406,130.88,130.84,7.6427]
[1725620649722,27.6412,130.87,130.83,26.7506]
[1725620654106,27.6412,130.87,130.8,19.1124]
[1725620654107,20.0,130.87,130.8,19.1124]
[1725620654505,7.6433,130.84,130.8,19.1124]
[1725620654712,20.0,130.83,130.8,19.1124]
[1725620655311,27.6436,130.83,130.8,19.1124]
[1725620659132,27.6436,130.83,130.79,7.6454]
[1725620659308,20.0,130.83,130.75,16.0636]
[1725620659508,7.6453,130.8,130.75,23.7111]
[1725620659722,7.6458,130.79,130.75,23.7111]
[1725620673025,7.647,130.77,130.75,16.0636]
[1725620673223,7.6477,130.76,130.72,23.4545]
[1725620673746,20.0,130.78,130.72,15.8047]
[1725620673973,19.1138,130.8,130.72,15.8047]
[1725620674123,20.0,130.79,130.72,15.8047]
[1725620675030,1.33219054,130.78,130.72,15.8047]
[1725620675346,7.6486,130.75,130.72,15.8047]
[1725620676645,7.6493,130.73,130.69,20.93125752]
[1725620676852,7.6494,130.73,130.69,20.93125752]
[1725620677842,7.6494,130.73,130.69,24.2176]
[1725620678569,20.0,130.72,130.68,26.7819]
[1725620678729,27.6501,130.72,130.68,19.1297]
[1725620679939,20.0,130.72,130.68,26.7819]
[1725620680432,27.6499,130.72,130.68,26.7819]
[1725620683947,27.6499,130.72,130.68,26.7819]
[1725620685439,20.0,130.72,130.68,26.7819]
[1725620691836,27.6501,130.72,130.68,26.7818]
[1725620693159,20.0,130.72,130.68,26.7818]
[1725620694531,20.0,130.72,130.69,7.6515]
[1725620695442,21.33244652,130.72,130.69,7.6515]
[1725620696161,21.33244652,130.72,130.7,7.6509]
[1725620696372,20.0,130.73,130.71,7.6505]
[1725620696543,20.0,130.74,130.71,7.6505]
[1725620696865,20.0,130.74,130.71,8.74055401]
[1725620697047,1.33221174,130.75,130.72,20.21377061]
[1725620697361,1.33221174,130.75,130.72,27.86357061]
[1725620698164,1.33221174,130.75,130.73,1.09143142]
[1725620698369,21.33221174,130.75,130.73,1.09143142]
[1725620699163,28.98051174,130.75,130.72,19.1238]
[1725620700472,28.98051174,130.75,130.7,23.135]
[1725620700473,7.6487,130.74,130.7,23.135]
[1725620700673,7.6506,130.71,130.66,35.462]
[1725620700837,20.0,130.73,130.66,35.462]
[1725620701041,21.33221174,130.75,130.66,35.462]
[1725620702257,7.65,130.72,130.68,7.6522]
[1725620702468,20.0,130.71,130.68,7.6522]
[1725620705375,20.0,130.71,130.66,35.462]
[1725620705376,7.6513,130.7,130.66,43.1153]
[1725620705574,20.0,130.69,130.66,43.1153]
[1725620706849,20.0,130.7,130.66,43.1153]
[1725620707505,1.33221174,130.75,130.67,15.7513599]
[1725620707775,1.33221174,130.75,130.72,7.6498]
[1725620708170,7.6477,130.76,130.72,7.6498]
[1725620708756,1.33207171,130.78,130.73,7.6493]
[1725620708973,7.6492,130.74,130.71,16.1342]
[1725620709183,20.44857171,130.78,130.71,16.1342]
[1725620709470,7.6492,130.74,130.71,16.1342]
[1725620709988,7.6495,130.73,130.69,7.6515]
[1725620710280,20.0,130.72,130.67,34.8027]
[1725620710467,7.6512,130.7,130.67,15.6709]
[1725620710783,20.0,130.72,130.67,15.6709]
[1725620710784,7.6506,130.71,130.67,15.6709]
[1725620710946,20.0,130.7,130.67,15.6709]
[1725620711689,20.0,130.7,130.66,7.6533]
[1725620711895,20.0,130.7,130.64,42.4608]
[1725620712071,20.0,130.75,130.65,7.6539]
[1725620712700,20.0,130.75,130.67,7.6528]
[1725620713077,7.6492,130.74,130.68,7.6522]
[1725620713282,27.6495,130.73,130.68,7.6522]
[1725620713599,20.0,130.72,130.67,7.6527]
[1725620714098,27.6501,130.72,130.67,7.6527]
[1725620714293,20.0,130.72,130.66,19.1322]
[1725620714482,19.1223,130.74,130.64,15.6709]
[1725620714670,20.0,130.73,130.64,15.6709]
[1725620715373,7.6511,130.7,130.65,7.6539]
[1725620715571,20.0,130.69,130.65,7.6539]
[1725620720982,27.6517,130.69,130.65,7.6539]
[1725620722290,20.0,130.69,130.65,7.6539]
[1725620724206,20.0,130.69,130.66,7.6533]
[1725620724904,20.0,130.69,130.65,7.6538]
[1725620726214,7.6523,130.68,130.64,42.4614]
[1725620726413,7.6523,130.68,130.65,4.72278803]
[1725620726714,7.6523,130.68,130.64,42.4614]
[1725620726878,7.6523,130.68,130.65,4.72278803]
[1725620727082,7.6523,130.68,130.64,42.4614]
[1725620727518,7.6529,130.67,130.64,34.8069]
[1725620727681,7.6529,130.67,130.64,15.6709]
[1725620727682,27.6529,130.67,130.64,15.6709]
[1725620727883,7.6529,130.67,130.64,15.6709]
[1725620728191,7.6529,130.67,130.63,12.05746564]
[1725620728192,7.6529,130.67,130.63,7.6549]
[1725620728507,20.0,130.69,130.62,7.6556]
[1725620728508,27.6534,130.66,130.62,7.6556]
[1725620728707,28.98648112,130.66,130.62,7.6556]
[1725620729407,7.654,130.65,130.61,43.344]
[1725620730596,21.33308112,130.66,130.61,35.6878]
[1725620730802,1.33308112,130.66,130.61,35.6878]
[1725620731113,7.653,130.67,130.63,7.6548]
[1725620731313,20.0,130.66,130.63,7.6548]
[1725620731514,27.6538,130.66,130.61,35.6878]
[1725620731908,27.6538,130.66,130.62,7.6556]
[1725620732292,39.135,130.66,130.59,6.5440995]
[1725620732533,7.6552,130.63,130.59,4.40636245]
[1725620732736,7.6552,130.63,130.58,16.4712538]
[1725620733015,20.0,130.62,130.58,12.06489135]
[1725620733393,20.0,130.62,130.58,4.40689135]
[1725620733394,27.6559,130.62,130.58,4.40689135]
[1725620733805,27.6559,130.62,130.58,12.06479135]
[1725620734997,27.6559,130.62,130.58,4.40689135]
[1725620735203,20.0,130.62,130.58,12.06489135]
[1725620735504,27.6558,130.62,130.58,12.06489135]
[1725620737833,7.6568,130.61,130.58,4.40689135]
[1725620738337,7.6575,130.59,130.58,4.40689135]
[1725620738511,7.6567,130.61,130.58,4.40689135]
[1725620738702,20.0,130.59,130.58,4.40689135]
[1725620739103,7.6558,130.62,130.58,4.40689135]
[1725620739303,20.0,130.61,130.58,4.40689135]
[1725620739829,27.6565,130.61,130.58,4.40689135]
[1725620740219,27.6565,130.61,130.57,22.9616]
[1725620743544,20.0,130.61,130.58,7.658]
[1725620743920,20.0,130.62,130.58,7.658]
[1725620744615,27.656,130.62,130.58,7.658]
[1725620747253,27.656,130.62,130.57,22.9616]
[1725620747545,7.6564,130.61,130.57,22.9616]
[1725620750791,7.657,130.6,130.57,15.3031]
[1725620751365,8.99056665,130.6,130.56,33.4205]
[1725620751565,8.99056665,130.6,130.54,0.844837]
[1725620751566,27.6576,130.59,130.55,7.6597]
[1725620751777,7.6586,130.58,130.54,8.505237]
[1725620752096,20.0,130.57,130.54,0.844837]
[1725620752268,20.0,130.59,130.54,0.844837]
[1725620752971,21.33356665,130.6,130.54,0.844837]
[1725620753299,7.6593,130.56,130.54,0.844837]
[1725620753992,7.6599,130.55,130.54,0.844837]
[1725620754372,27.6599,130.55,130.54,0.844837]
[1725620757687,27.6599,130.55,130.49,7.6633]
[1725620757688,20.0,130.55,130.49,7.6633]
[1725620757885,4.8803,130.56,130.49,7.6633]
[1725620758090,24.8803,130.56,130.49,7.6633]
[1725620758490,19.1502,130.55,130.47,19.1603]
[1725620758674,7.6626,130.51,130.47,26.8248]
[1725620760500,19.1529,130.53,130.45,15.2137]
[1725620760665,20.0,130.5,130.45,15.2137]
[1725620761284,7.6641,130.48,130.45,15.2137]
[1725620761485,20.0,130.52,130.46,19.1625]
[1725620761690,7.6628,130.51,130.46,19.1625]
[1725620761873,20.0,130.5,130.47,7.6641]
[1725620762269,20.0,130.5,130.46,25.6068]
[1725620762574,20.0,130.53,130.48,19.1592]
[1725620762780,2.05116639,130.58,130.54,7.6599]
[1725620762990,7.6582,130.58,130.52,25.3128]
[1725620763195,1.33356665,130.6,130.57,7.6587]
[1725620763512,1.33356665,130.6,130.56,7.6591]
[1725620763792,8.99056665,130.6,130.55,7.6597]
[1725620764295,1.33356665,130.6,130.56,7.6591]
[1725620764679,1.33356665,130.6,130.57,23.5391]
[1725620764884,7.6552,130.64,130.58,7.658]
[1725620765470,7.6541,130.65,130.58,19.1443]
[1725620765670,13.07270793,130.66,130.59,7.6574]
[1725620765876,7.6552,130.64,130.58,26.8023]
[1725620766901,13.07270793,130.66,130.57,15.8805]
[1725620767097,7.657,130.6,130.57,15.8805]
[1725620767298,7.657,130.6,130.55,19.1496]
[1725620767299,20.0,130.59,130.55,19.1496]
[1725620767590,27.6576,130.59,130.55,19.1496]
[1725620767896,20.0,130.59,130.55,26.8093]
[1725620769005,20.0,130.59,130.54,24.205]
[1725620769307,1.33460581,130.6,130.54,16.5446]
[1725620769308,7.6585,130.58,130.54,16.5446]
[1725620769477,27.6589,130.57,130.54,16.5446]
[1725620771098,27.6589,130.57,130.52,32.9742]
[1725620771496,20.0,130.57,130.51,22.7393]
[1725620771717,7.6592,130.57,130.52,7.6614]
[1725620772011,20.0,130.56,130.52,7.6614]
[1725620772415,20.0,130.56,130.53,7.6607]
[1725620772584,20.0,130.57,130.53,7.6607]
[1725620773392,27.6587,130.57,130.53,7.6607]
[1725620774209,27.6587,130.57,130.52,7.6614]
[1725620774410,7.6595,130.56,130.52,7.6614]
[1725620776881,27.6588,130.57,130.52,7.6614]
[1725620779414,7.6593,130.56,130.52,7.6614]
[1725620781707,7.6602,130.55,130.51,41.8942]
[1725620782221,27.6607,130.54,130.51,15.0772]
[1725620782519,7.6612,130.53,130.49,13.8969]
[1725620782811,7.6606,130.54,130.5,7.6628]
[1725620783017,20.0,130.53,130.5,7.6628]
[1725620783916,20.0,130.53,130.5,19.1565]
[1725620784217,20.0,130.55,130.51,7.662]
[1725620784530,7.6606,130.54,130.5,26.819]
[1725620787603,27.66,130.55,130.51,7.6617]
[1725620787891,20.0,130.55,130.5,19.1565]
[1725620788107,20.0,130.57,130.5,19.1565]
[1725620788311,7.6596,130.56,130.52,7.6616]
[1725620788516,20.0,130.55,130.52,7.6616]
[1725620789906,20.0,130.55,130.5,26.8187]
[1725620790108,20.0,130.57,130.5,26.8187]
[1725620791023,1.33524256,130.56,130.5,26.8187]
[1725620791395,7.6607,130.54,130.5,26.8187]
[1725620791596,20.0,130.53,130.5,26.8187]
[1725620792995,27.6611,130.53,130.5,19.1565]
[1725620795093,20.0,130.53,130.48,7.6639]
[1725620795319,20.48384256,130.56,130.48,7.6639]
[1725620795320,20.0,130.55,130.48,7.6639]
[1725620796333,7.6622,130.51,130.48,7.6639]
[1725620796699,7.6618,130.52,130.48,7.6639]
[1725620796931,20.0,130.51,130.48,7.6639]
[1725620799526,20.0,130.51,130.49,7.6633]
[1725620799724,20.0,130.52,130.49,7.6633]
[1725620800511,27.6616,130.52,130.49,7.6633]
[1725620801410,27.6616,130.52,130.48,7.6638]
[1725620804509,20.0,130.52,130.49,19.1583]
[1725620804713,20.0,130.55,130.49,19.1583]
[1725620805236,7.6608,130.54,130.5,7.6624]
[1725620805534,20.0,130.53,130.5,7.6624]
[1725620806737,27.661,130.53,130.49,26.8216]
[1725620807206,20.0,130.53,130.5,7.6628]
[1725620807407,20.0,130.53,130.51,7.6617]
[1725620807607,20.0,130.54,130.52,7.6612]
[1725620807836,1.33524256,130.56,130.52,23.1206]
[1725620808040,19.1452,130.59,130.52,23.1206]
[1725620808616,19.1452,130.59,130.52,15.4594]
[1725620809015,20.0,130.58,130.52,15.4594]
[1725620809439,7.6601,130.55,130.52,15.4594]
[1725620809645,20.0,130.54,130.52,15.4594]
[1725620815523,20.0,130.54,130.5,19.1556]
[1725620815723,7.661,130.53,130.5,19.1556]
[1725620815924,1.33421848,130.56,130.5,19.1556]
[1725620816328,7.6599,130.55,130.51,7.6618]
[1725620816538,27.6604,130.54,130.51,7.6618]
[1725620816742,20.0,130.54,130.51,7.6618]
[1725620817258,1.33421848,130.56,130.51,7.6618]
[1725620817552,7.6601,130.55,130.51,7.6618]
[1725620817755,20.0,130.54,130.51,7.6618]
[1725620825061,20.0,130.54,130.52,26.8157]
[1725620825563,20.0,130.55,130.52,26.8157]
[1725620829561,20.0,130.55,130.53,7.661]
[1725620829764,21.33421848,130.56,130.54,20.68262582]
[1725620829975,1.33421848,130.56,130.54,19.1507]
[1725620830263,23.17640555,130.61,130.57,7.6582]
[1725620830563,1.33361329,130.59,130.57,7.6582]
[1725620830769,7.6559,130.62,130.58,7.658]
[1725620831063,8.98955167,130.62,130.58,24.093]
[1725620831271,1.33365167,130.62,130.58,24.093]
[1725620831567,30.73181784,130.66,130.59,7.6574]
[1725620831568,7.6546,130.64,130.59,7.6574]
[1725620831769,1.33348712,130.62,130.59,7.6574]
[1725620832536,7.6553,130.63,130.59,7.6574]
[1725620832942,7.6553,130.63,130.58,49.7801]
[1725620833741,1.33345874,130.64,130.58,16.435]
[1725620833962,7.6569,130.6,130.58,16.435]
[1725620834256,7.6559,130.62,130.58,16.435]
[1725620834872,7.6552,130.63,130.59,7.6575]
[1725620836039,7.6564,130.61,130.58,16.435]
[1725620836840,7.6557,130.63,130.58,24.0929]
[1725620837162,27.6558,130.62,130.58,24.0929]
[1725620838367,20.0,130.62,130.59,14.2001]
[1725620841642,20.0,130.62,130.59,25.6861]
[1725620841867,1.33345874,130.64,130.59,25.6861]
[1725620842570,7.6556,130.63,130.59,33.3434]
[1725620842764,20.0,130.62,130.59,33.3434]
[1725620848274,20.0,130.62,130.59,25.6861]
[1725620848446,7.6568,130.61,130.58,16.435]
[1725620848651,7.6585,130.58,130.55,15.3689]
[1725620849047,20.0,130.57,130.55,15.3689]
[1725620849360,27.6587,130.57,130.55,15.3689]
[1725620849563,20.0,130.57,130.53,19.1513]
[1725620849783,20.0,130.59,130.52,13.9851]
[1725620850078,7.6606,130.54,130.51,15.3689]
[1725620850365,7.6612,130.53,130.51,15.3689]
[1725620850570,7.6606,130.54,130.51,15.3689]
[1725620850774,19.1491,130.56,130.48,21.3288]
[1725620850983,26.1244,130.55,130.44,42.1026]
[1725620852056,27.91919978,130.55,130.44,42.1026]
[1725620852257,7.6634,130.49,130.44,42.1026]
[1725620852456,20.0,130.48,130.45,7.6657]
[1725620853755,20.0,130.48,130.44,42.1025]
[1725620854564,20.0,130.48,130.45,7.6656]
[1725620854757,20.0,130.49,130.45,7.6656]
[1725620855970,27.6634,130.49,130.45,7.6656]
[1725620857088,27.6634,130.49,130.44,42.1024]
[1725620860674,7.6642,130.48,130.44,34.4363]
[1725620863202,7.6642,130.48,130.44,42.1025]
[1725620863690,27.6636,130.49,130.44,42.1025]
[1725620864066,7.665,130.47,130.44,15.2709]
[1725620864485,7.6644,130.48,130.44,15.2709]
[1725620864768,20.0,130.47,130.44,15.2709]
[1725620866169,20.0,130.47,130.44,22.9372]
[1725620866371,1.33494368,130.5,130.46,7.6651]
[1725620867674,21.33494368,130.5,130.46,7.6651]
[1725620869484,21.33494368,130.5,130.47,7.6645]
[1725620869683,21.33494368,130.5,130.46,7.6649]
[1725620870110,28.99784368,130.5,130.46,7.6649]
[1725620870279,28.99784368,130.5,130.45,26.8297]
[1725620870474,7.6635,130.49,130.45,26.8297]
[1725620870876,28.99794368,130.5,130.46,7.6651]
[1725620873398,28.99794368,130.5,130.45,26.8297]
[1725620873902,21.33494368,130.5,130.46,7.6646]
[1725620874297,8.99804368,130.5,130.46,7.6646]
[1725620874474,20.0,130.49,130.46,7.6646]
[1725620875187,1.33482912,130.48,130.46,7.6646]
[1725620877902,1.33482912,130.48,130.45,26.8298]
[1725620882206,6.4969,130.6,130.47,104.15354281]
[1725620882386,6.4969,130.6,130.51,34.8132]
[1725620882580,7.6579,130.59,130.54,7.6599]